fUST/lending_fUST_20250427
["ID","MTS","AMOUNT","RATE_DAILY","PERIOD"]
[359145288,1745740246074,-400.0,0.00016438,2]
[359145289,1745740246084,-1990.06,0.00016438,2]
[359145290,1745740246093,-500.0,0.00016438,2]
[359145291,1745740246103,-400.0,0.00016438,2]
[359145292,1745740246112,-500.0,0.00016438,2]
[359145293,1745740246123,-400.0,0.00016438,2]
[359145294,1745740246136,-517.00816204,0.00016438,2]
[359145295,1745740246146,-400.0,0.00016438,2]
[359145296,1745740246158,-500.0,0.00016438,2]
[359145297,1745740246167,-528.90423603,0.00016438,2]
[359145298,1745740246179,-500.0,0.00016438,2]
[359145299,1745740246188,-400.0,0.00016438,2]
[359145300,1745740246198,-525.33457606,0.00016438,2]
[359145301,1745740246210,-1442.17,0.00016438,2]
[359145302,1745740246221,-500.0,0.00016438,2]
[359145303,1745740246231,-500.0,0.00016438,2]
[359145304,1745740246240,-400.0,0.00016438,2]
[359145305,1745740246249,-1388.46,0.00016438,2]
[359145306,1745740246258,-500.0,0.00016438,2]
[359145307,1745740246268,-1412.62,0.00016438,2]
[359145308,1745740246277,-400.0,0.00016438,2]
[359145309,1745740246287,-60.62557072,0.00016438,2]
[359145314,1745740719117,225.46349991,0.00019582,17]
[359145315,1745740719508,225.46349991,0.00021082,33]
[359145345,1745741432099,-285.67536283,0.00014255,2]
[359145346,1745741432114,-1000.0,0.00014399,2]
[359145347,1745741432127,-250.0,0.000144,2]
[359145348,1745741432139,-468.732627,0.00014968,2]
[359145349,1745741432151,-160.0,0.00015,2]
[359145350,1745741432163,-349.81453948,0.00015167,2]
[359145351,1745741432175,-482.2751847,0.00015204,2]
[359145352,1745741432187,-300.0,0.00016198,2]
[359145353,1745741432200,-300.0,0.00016198,2]
[359145354,1745741432212,-500.0,0.00016199,2]
[359145355,1745741432223,-182.93833992,0.00016199,2]
[359145356,1745741432236,-500.0,0.00016199,2]
[359145358,1745741432248,-287.04460134,0.00016199,2]
[359145359,1745741432260,-500.0,0.00016199,2]
[359145361,1745741432272,-20000.0,0.000162,2]
[359145363,1745741432284,-159.09815816,0.00016228,2]
[359145366,1745741432296,-207.4,0.00016228,2]
[359145368,1745741432308,-336.9071082,0.00016231,2]
[359145370,1745741432320,-1370.2912063,0.00016235,2]
[359145373,1745741432332,-185.55095778,0.00016237,2]
[359145375,1745741432344,-456.38562681,0.00016237,2]
[359145377,1745741432355,-500.0,0.00016237,2]
[359145379,1745741432367,-388.63966397,0.00016237,2]
[359145382,1745741432379,-413.76405761,0.00016237,2]
[359145384,1745741432391,-1552.4101096,0.00016238,2]
[359145386,1745741432404,-370000.0,0.00016238,2]
[359145388,1745741432416,-196.96702943,0.00016338,2]
[359145391,1745741432429,-318.05006284,0.00016357,2]
[359145393,1745741432441,-400.0,0.00016438,2]
[359145396,1745741432454,-500.0,0.00016438,2]
[359145398,1745741432464,-472.80388031,0.00016438,2]
[359145400,1745741432474,-400.0,0.00016438,2]
[359145401,1745741432485,-400.0,0.00016438,2]
[359145402,1745741432495,-400.0,0.00016438,2]
[359145403,1745741432507,-500.0,0.00016438,2]
[359145404,1745741432518,-500.0,0.00016438,2]
[359145405,1745741432528,-400.0,0.00016438,2]
[359145406,1745741432539,-1109.79,0.00016438,2]
[359145407,1745741432550,-500.0,0.00016438,2]
[359145408,1745741432561,-500.0,0.00016438,2]
[359145409,1745741432830,-400.0,0.00016438,2]
[359145410,1745741432858,-1000.0,0.00016438,2]
[359145411,1745741432872,-400.0,0.00016438,2]
[359145412,1745741432882,-400.0,0.00016438,2]
[359145413,1745741432892,-400.0,0.00016438,2]
[359145414,1745741432903,-400.0,0.00016438,2]
[359145415,1745741432913,-400.0,0.00016438,2]
[359145416,1745741432924,-400.0,0.00016438,2]
[359145417,1745741432934,-242.08915139,0.00016438,2]
[359145418,1745741432946,-400.0,0.00016438,2]
[359145419,1745741432956,-400.0,0.00016438,2]
[359145420,1745741432967,-400.0,0.00016438,2]
[359145421,1745741432977,-400.0,0.00016438,2]
[359145422,1745741432988,-400.0,0.00016438,2]
[359145423,1745741432997,-500.0,0.00016438,2]
[359145424,1745741433007,-500.0,0.00016438,2]
[359145425,1745741433018,-500.0,0.00016438,2]
[359145426,1745741433029,-500.0,0.00016438,2]
[359145427,1745741433040,-400.0,0.00016438,2]
[359145428,1745741433051,-400.0,0.00016438,2]
[359145429,1745741433062,-500.0,0.00016438,2]
[359145430,1745741433073,-500.0,0.00016438,2]
[359145431,1745741433083,-400.0,0.00016438,2]
[359145432,1745741433094,-400.0,0.00016438,2]
[359145433,1745741433104,-400.0,0.00016438,2]
[359145434,1745741433115,-400.0,0.00016438,2]
[359145435,1745741433125,-500.0,0.00016438,2]
[359145436,1745741433135,-151.96455328,0.00016438,2]
[359145437,1745741433146,-535.48775758,0.00016438,2]
[359145438,1745741433156,-400.0,0.00016438,2]
[359145439,1745741433167,-500.0,0.00016438,2]
[359145440,1745741433178,-542.77479137,0.00016438,2]
[359145441,1745741433188,-500.0,0.00016438,2]
[359145442,1745741433198,-500.0,0.00016438,2]
[359145443,1745741433209,-500.0,0.00016438,2]
[359145444,1745741433220,-400.0,0.00016438,2]
[359145445,1745741433230,-400.0,0.00016438,2]
[359145446,1745741433240,-500.0,0.00016438,2]
[359145447,1745741433251,-400.0,0.00016438,2]
[359145448,1745741433262,-500.0,0.00016438,2]
[359145449,1745741433273,-500.0,0.00016438,2]
[359145450,1745741433283,-400.0,0.00016438,2]
[359145451,1745741433293,-500.0,0.00016438,2]
[359145452,1745741433303,-317.00973594,0.00016438,2]
[359145453,1745741433313,-400.0,0.00016438,2]
[359145454,1745741433324,-996.05,0.00016438,2]
[359145455,1745741433334,-400.0,0.00016438,2]
[359145456,1745741433344,-430.68285949,0.00016438,2]
[359145457,1745741433355,-400.0,0.00016438,2]
[359145458,1745741433366,-1003.58,0.00016438,2]
[359145459,1745741433376,-1069.72,0.00016438,2]
[359145460,1745741433387,-500.0,0.00016438,2]
[359145461,1745741433399,-400.0,0.00016438,2]
[359145462,1745741433409,-1202.19,0.00016438,2]
[359145463,1745741433419,-400.0,0.00016438,2]
[359145464,1745741433429,-400.0,0.00016438,2]
[359145465,1745741433439,-400.0,0.00016438,2]
[359145466,1745741433451,-500.0,0.00016438,2]
[359145467,1745741433461,-400.0,0.00016438,2]
[359145468,1745741433472,-500.0,0.00016438,2]
[359145469,1745741433483,-400.0,0.00016438,2]
[359145470,1745741433494,-400.0,0.00016438,2]
[359145471,1745741433505,-500.0,0.00016438,2]
[359145472,1745741433517,-400.0,0.00016438,2]
[359145473,1745741433528,-500.0,0.00016438,2]
[359145474,1745741433538,-500.0,0.00016438,2]
[359145475,1745741433549,-500.0,0.00016438,2]
[359145476,1745741433560,-400.0,0.00016438,2]
[359145477,1745741433570,-400.0,0.00016438,2]
[359145478,1745741433580,-400.0,0.00016438,2]
[359145479,1745741433592,-1026.06,0.00016438,2]
[359145480,1745741433603,-280.29954031,0.00016438,2]
[359145481,1745741433613,-400.0,0.00016438,2]
[359145482,1745741433623,-400.0,0.00016438,2]
[359145483,1745741433633,-400.0,0.00016438,2]
[359145484,1745741433643,-500.0,0.00016438,2]
[359145485,1745741433653,-400.0,0.00016438,2]
[359145486,1745741433664,-500.0,0.00016438,2]
[359145487,1745741433675,-500.0,0.00016438,2]
[359145488,1745741433686,-500.0,0.00016438,2]
[359145489,1745741433696,-509.79544615,0.00016438,2]
[359145490,1745741433705,-400.0,0.00016438,2]
[359145491,1745741433715,-500.0,0.00016438,2]
[359145492,1745741433738,-500.0,0.00016438,2]
[359145493,1745741433751,-500.0,0.00016438,2]
[359145494,1745741433762,-500.0,0.00016438,2]
[359145495,1745741433773,-400.0,0.00016438,2]
[359145496,1745741433785,-500.0,0.00016438,2]
[359145497,1745741433796,-500.0,0.00016438,2]
[359145498,1745741433807,-200.0,0.00016438,2]
[359145499,1745741433818,-200.0,0.00016438,2]
[359145500,1745741433828,-400.0,0.00016438,2]
[359145501,1745741433838,-400.0,0.00016438,2]
[359145502,1745741433849,-400.0,0.00016438,2]
[359145503,1745741433860,-400.0,0.00016438,2]
[359145504,1745741433870,-2153.76,0.00016438,2]
[359145505,1745741433880,-2870.82,0.00016438,2]
[359145506,1745741433890,-400.0,0.00016438,2]
[359145507,1745741433900,-400.0,0.00016438,2]
[359145508,1745741433910,-1658.55,0.00016438,2]
[359145509,1745741433921,-400.0,0.00016438,2]
[359145510,1745741433932,-400.0,0.00016438,2]
[359145511,1745741433942,-2239.17,0.00016438,2]
[359145512,1745741433954,-400.0,0.00016438,2]
[359145513,1745741433965,-1907.14,0.00016438,2]
[359145514,1745741433976,-400.0,0.00016438,2]
[359145515,1745741433987,-400.0,0.00016438,2]
[359145516,1745741433998,-421.39,0.00016438,2]
[359145517,1745741434008,-502.18,0.00016438,2]
[359145518,1745741434019,-400.0,0.00016438,2]
[359145519,1745741434030,-400.0,0.00016438,2]
[359145520,1745741434042,-400.0,0.00016438,2]
[359145521,1745741434052,-200.0,0.00016438,2]
[359145522,1745741434063,-1330.61,0.00016438,2]
[359145523,1745741434074,-500.0,0.00016438,2]
[359145524,1745741434084,-400.0,0.00016438,2]
[359145525,1745741434095,-1649.76,0.00016438,2]
[359145526,1745741434105,-158.02103784,0.00016438,2]
[359145527,1745741434116,-400.0,0.00016438,2]
[359145528,1745741434127,-500.0,0.00016438,2]
[359145529,1745741434137,-400.0,0.00016438,2]
[359145530,1745741434147,-1828.13,0.00016438,2]
[359145531,1745741434158,-400.0,0.00016438,2]
[359145532,1745741434168,-1071.72,0.00016438,2]
[359145533,1745741434179,-1777.42,0.00016438,2]
[359145534,1745741434190,-400.0,0.00016438,2]
[359145535,1745741434200,-400.0,0.00016438,2]
[359145536,1745741434210,-400.0,0.00016438,2]
[359145537,1745741434221,-400.0,0.00016438,2]
[359145538,1745741434231,-400.0,0.00016438,2]
[359145539,1745741434241,-400.0,0.00016438,2]
[359145540,1745741434252,-500.0,0.00016438,2]
[359145541,1745741434263,-400.0,0.00016438,2]
[359145542,1745741434274,-400.0,0.00016438,2]
[359145543,1745741434284,-500.0,0.00016438,2]
[359145544,1745741434294,-408.17164076,0.00016438,2]
[359145545,1745741434305,-1363.46,0.00016438,2]
[359145546,1745741434316,-1220.27,0.00016438,2]
[359145547,1745741434327,-400.0,0.00016438,2]
[359145548,1745741434342,-400.0,0.00016438,2]
[359145549,1745741434353,-300.0,0.00016438,2]
[359145550,1745741434365,-400.0,0.00016438,2]
[359145551,1745741434375,-400.0,0.00016438,2]
[359145552,1745741434386,-400.0,0.00016438,2]
[359145553,1745741434397,-400.0,0.00016438,2]
[359145554,1745741434408,-400.0,0.00016438,2]
[359145555,1745741434420,-300.0,0.00016438,2]
[359145556,1745741434431,-400.0,0.00016438,2]
[359145557,1745741434442,-2454.04,0.00016438,2]
[359145558,1745741434454,-1626.19,0.00016438,2]
[359145559,1745741434465,-400.0,0.00016438,2]
[359145560,1745741434476,-484.54112358,0.00016438,2]
[359145561,1745741434486,-400.0,0.00016438,2]
[359145562,1745741434496,-400.0,0.00016438,2]
[359145563,1745741434507,-400.0,0.00016438,2]
[359145564,1745741434517,-380.4170494,0.00016438,2]
[359145565,1745741434528,-2884.11,0.00016438,2]
[359145566,1745741434538,-500.0,0.00016438,2]
[359145567,1745741434549,-400.0,0.00016438,2]
[359145568,1745741434559,-400.0,0.00016438,2]
[359145569,1745741434570,-2174.91,0.00016438,2]
[359145570,1745741434580,-1479.4,0.00016438,2]
[359145571,1745741434591,-400.0,0.00016438,2]
[359145572,1745741434602,-1093.93,0.00016438,2]
[359145573,1745741434612,-400.0,0.00016438,2]
[359145574,1745741434623,-1301.81,0.00016438,2]
[359145575,1745741434633,-184.39812954,0.00016438,2]
[359145576,1745741434644,-400.0,0.00016438,2]
[359145577,1745741434654,-400.0,0.00016438,2]
[359145578,1745741434665,-400.0,0.00016438,2]
[359145579,1745741434675,-1551.9,0.00016438,2]
[359145580,1745741434685,-1362.74,0.00016438,2]
[359145581,1745741434695,-1285.79,0.00016438,2]
[359145582,1745741434706,-400.0,0.00016438,2]
[359145583,1745741434717,-400.0,0.00016438,2]
[359145584,1745741434727,-801.75,0.00016438,2]
[359145585,1745741434738,-400.0,0.00016438,2]
[359145586,1745741434752,-769.81,0.00016438,2]
[359145587,1745741434763,-797.76,0.00016438,2]
[359145588,1745741434774,-400.0,0.00016438,2]
[359145589,1745741434785,-500.0,0.00016438,2]
[359145590,1745741434795,-500.0,0.00016438,2]
[359145591,1745741434806,-400.0,0.00016438,2]
[359145592,1745741434816,-400.0,0.00016438,2]
[359145593,1745741434830,-597.26,0.00016438,2]
[359145594,1745741434841,-400.0,0.00016438,2]
[359145595,1745741434851,-1842.96,0.00016438,2]
[359145596,1745741434863,-500.0,0.00016438,2]
[359145597,1745741434873,-262.0412427,0.00016473,2]
[359145598,1745741434884,-500.0,0.00016473,2]
[359145599,1745741434895,-502.24768128,0.00016473,2]
[359145600,1745741434905,-502.59814459,0.00016473,2]
[359145601,1745741434916,-502.59319953,0.00016473,2]
[359145602,1745741434927,-500.0,0.00016473,2]
[359145603,1745741434938,-567.70354531,0.00016473,2]
[359145604,1745741434949,-396.72896926,0.00016473,2]
[359145605,1745741434959,-500.0,0.00016473,2]
[359145606,1745741434970,-502.16106278,0.00016473,2]
[359145607,1745741434980,-500.0,0.00016473,2]
[359145608,1745741434990,-500.0,0.00016473,2]
[359145609,1745741435001,-158.72310753,0.00016473,2]
[359145610,1745741435011,-355.17995645,0.00016473,2]
[359145611,1745741435022,-429.70432442,0.00016473,2]
[359145612,1745741435033,-500.0,0.00016473,2]
[359145613,1745741435044,-500.0,0.00016473,2]
[359145614,1745741435055,-500.0,0.00016473,2]
[359145615,1745741435065,-500.0,0.00016473,2]
[359145616,1745741435076,-157.05607926,0.00016473,2]
[359145617,1745741435087,-500.0,0.00016473,2]
[359145618,1745741435098,-286.89478347,0.00016473,2]
[359145619,1745741435109,-500.0,0.00016473,2]
[359145620,1745741435120,-255.77888622,0.00016473,2]
[359145621,1745741435131,-500.0,0.00016473,2]
[359145622,1745741435141,-500.0,0.00016473,2]
[359145623,1745741435154,-500.0,0.00016473,2]
[359145624,1745741435165,-500.0,0.00016473,2]
[359145625,1745741435176,-500.0,0.00016473,2]
[359145626,1745741435187,-500.0,0.00016473,2]
[359145627,1745741435198,-500.0,0.00016473,2]
[359145628,1745741435208,-500.0,0.00016473,2]
[359145629,1745741435219,-500.0,0.00016473,2]
[359145630,1745741435230,-500.0,0.00016473,2]
[359145631,1745741435241,-209.47079977,0.00016615,2]
[359145632,1745741435253,-3328.41505097,0.00016712,3]
[359145633,1745741435273,-837.6261697,0.00016712,3]
[359145639,1745741438161,-932.98,0.00016438,2]
[359145640,1745741438172,-8410.45364455,0.00016712,3]
[359145641,1745741438182,-160.0,0.00016712,3]
[359145642,1745741438193,-160.0,0.00016712,3]
[359145643,1745741438203,-400.0,0.00016712,2]
[359145644,1745741438214,-400.0,0.00016712,2]
[359145645,1745741438225,-500.0,0.00016712,2]
[359145647,1745741438236,-500.0,0.00016712,2]
[359145648,1745741438248,-500.0,0.00016712,2]
[359145649,1745741438259,-1109.79,0.00016712,2]
[359145650,1745741438270,-500.0,0.00016712,2]
[359145651,1745741438281,-500.0,0.00016712,2]
[359145652,1745741438292,-500.0,0.00016712,2]
[359145653,1745741438303,-200.0,0.00016712,2]
[359145654,1745741438313,-400.0,0.00016712,2]
[359145655,1745741438323,-219.40161598,0.00016712,2]
[359145656,1745741438333,-204.59516419,0.00016712,2]
[359145657,1745741438343,-200.0,0.00016712,2]
[359145658,1745741438354,-200.0,0.00016712,2]
[359145659,1745741438364,-200.0,0.00016712,2]
[359145660,1745741438374,-500.0,0.00016712,2]
[359145661,1745741438384,-400.0,0.00016712,2]
[359145662,1745741438394,-400.0,0.00016712,2]
[359145663,1745741438404,-400.0,0.00016712,2]
[359145664,1745741438414,-400.0,0.00016712,2]
[359145665,1745741438424,-400.0,0.00016712,2]
[359145666,1745741438434,-200.0,0.00016712,2]
[359145667,1745741438444,-500.0,0.00016712,2]
[359145668,1745741438454,-400.0,0.00016712,2]
[359145669,1745741438464,-400.0,0.00016712,2]
[359145670,1745741438474,-400.0,0.00016712,2]
[359145671,1745741438485,-400.0,0.00016712,2]
[359145672,1745741438495,-400.0,0.00016712,2]
[359145673,1745741438504,-996.05,0.00016712,2]
[359145674,1745741438514,-400.0,0.00016712,2]
[359145675,1745741438524,-400.0,0.00016712,2]
[359145676,1745741438535,-1003.58,0.00016712,2]
[359145677,1745741438545,-1069.72,0.00016712,2]
[359145678,1745741438555,-400.0,0.00016712,2]
[359145679,1745741438565,-1202.19,0.00016712,2]
[359145680,1745741438575,-400.0,0.00016712,2]
[359145681,1745741438585,-400.0,0.00016712,2]
[359145682,1745741438596,-400.0,0.00016712,2]
[359145683,1745741438607,-400.0,0.00016712,2]
[359145684,1745741438617,-165.642528,0.00016712,2]
[359145685,1745741438628,-266.78,0.00016712,2]
[359145686,1745741438639,-151.0,0.00016712,2]
[359145687,1745741438649,-1026.06,0.00016712,2]
[359145688,1745741438659,-500.0,0.00016712,2]
[359145689,1745741438669,-400.0,0.00016712,2]
[359145690,1745741438679,-400.0,0.00016712,2]
[359145691,1745741438690,-400.0,0.00016712,2]
[359145692,1745741438700,-151.0,0.00016712,2]
[359145693,1745741438710,-400.0,0.00016712,2]
[359145694,1745741438721,-151.0,0.00016712,2]
[359145695,1745741438731,-200.0,0.00016712,2]
[359145696,1745741438741,-471.93,0.00016712,2]
[359145697,1745741438757,-176.767744,0.00016712,2]
[359145698,1745741438767,-428.4,0.00016712,2]
[359145699,1745741438777,-176.767744,0.00016712,2]
[359145700,1745741438788,-400.0,0.00016712,2]
[359145701,1745741438799,-2153.76,0.00016712,2]
[359145702,1745741438810,-2870.82,0.00016712,2]
[359145703,1745741438821,-400.0,0.00016712,2]
[359145704,1745741438832,-500.0,0.00016712,2]
[359145705,1745741438844,-1658.55,0.00016712,2]
[359145706,1745741438855,-500.0,0.00016712,2]
[359145707,1745741438866,-500.0,0.00016712,2]
[359145708,1745741438877,-1907.14,0.00016712,2]
[359145709,1745741438887,-400.0,0.00016712,2]
[359145710,1745741438897,-400.0,0.00016712,2]
[359145711,1745741438907,-421.39,0.00016712,2]
[359145712,1745741438918,-502.18,0.00016712,2]
[359145713,1745741438929,-400.0,0.00016712,2]
[359145714,1745741438939,-400.0,0.00016712,2]
[359145715,1745741438951,-400.0,0.00016712,2]
[359145716,1745741438962,-151.0,0.00016712,2]
[359145717,1745741438972,-1330.61,0.00016712,2]
[359145718,1745741438982,-400.0,0.00016712,2]
[359145719,1745741438993,-1649.76,0.00016712,2]
[359145720,1745741439003,-400.0,0.00016712,2]
[359145721,1745741439014,-400.0,0.00016712,2]
[359145722,1745741439024,-1828.13,0.00016712,2]
[359145723,1745741439212,-400.0,0.00016712,2]
[359145724,1745741439224,-1071.72,0.00016712,2]
[359145725,1745741439234,-1777.42,0.00016712,2]
[359145726,1745741439245,-306.3205114,0.00016712,2]
[359145727,1745741439255,-500.0,0.00016712,2]
[359145728,1745741439266,-500.0,0.00016712,2]
[359145729,1745741439276,-400.0,0.00016712,2]
[359145730,1745741439286,-400.0,0.00016712,2]
[359145731,1745741439296,-500.0,0.00016712,2]
[359145732,1745741439306,-151.0,0.00016712,2]
[359145733,1745741439316,-400.0,0.00016712,2]
[359145734,1745741439326,-500.0,0.00016712,2]
[359145735,1745741439336,-1363.46,0.00016712,2]
[359145736,1745741439346,-1220.27,0.00016712,2]
[359145737,1745741439356,-253.44544372,0.00016712,2]
[359145738,1745741439366,-500.0,0.00016712,2]
[359145739,1745741439375,-500.0,0.00016712,2]
[359145740,1745741439385,-400.0,0.00016712,2]
[359145741,1745741439394,-200.0,0.00016712,2]
[359145742,1745741439405,-500.0,0.00016712,2]
[359145743,1745741439416,-400.0,0.00016712,2]
[359145744,1745741439427,-2454.04,0.00016712,2]
[359145745,1745741439438,-1626.19,0.00016712,2]
[359145746,1745741439449,-500.0,0.00016712,2]
[359145747,1745741439459,-400.0,0.00016712,2]
[359145748,1745741439470,-500.0,0.00016712,2]
[359145749,1745741439481,-2884.11,0.00016712,2]
[359145750,1745741439491,-500.0,0.00016712,2]
[359145751,1745741439501,-2174.91,0.00016712,2]
[359145752,1745741439511,-1479.4,0.00016712,2]
[359145753,1745741439520,-400.0,0.00016712,2]
[359145754,1745741439531,-1093.93,0.00016712,2]
[359145755,1745741439541,-500.0,0.00016712,2]
[359145756,1745741439551,-1301.81,0.00016712,2]
[359145757,1745741439562,-400.0,0.00016712,2]
[359145758,1745741439572,-500.0,0.00016712,2]
[359145759,1745741439582,-1551.9,0.00016712,2]
[359145760,1745741439592,-1362.74,0.00016712,2]
[359145761,1745741439602,-1285.79,0.00016712,2]
[359145762,1745741439612,-500.0,0.00016712,2]
[359145763,1745741439622,-801.75,0.00016712,2]
[359145764,1745741439633,-400.0,0.00016712,2]
[359145765,1745741439643,-769.81,0.00016712,2]
[359145766,1745741439654,-797.76,0.00016712,2]
[359145767,1745741439664,-500.0,0.00016712,2]
[359145768,1745741439675,-400.0,0.00016712,2]
[359145769,1745741439685,-400.0,0.00016712,2]
[359145770,1745741439696,-597.26,0.00016712,2]
[359145771,1745741439706,-400.0,0.00016712,2]
[359145772,1745741439717,-1842.96,0.00016712,2]
[359145773,1745741439727,-161.053525,0.00016712,2]
[359145774,1745741439738,-932.98,0.00016712,2]
[359145775,1745741439749,-160.65195966,0.00016773,2]
[359145776,1745741439758,-295.26488051,0.000169,2]
[359145777,1745741439768,-500.0,0.00016973,2]
[359145778,1745741439778,-632.58915817,0.00016973,2]
[359145779,1745741439788,-500.77022473,0.00016973,2]
[359145780,1745741439798,-501.98235286,0.00016973,2]
[359145781,1745741439809,-500.0,0.00016973,2]
[359145782,1745741439819,-502.69476561,0.00016973,2]
[359145783,1745741439829,-500.0,0.00016986,2]
[359145784,1745741439840,-1109.79,0.00016986,2]
[359145785,1745741439851,-500.0,0.00016986,2]
[359145786,1745741439860,-391.45,0.00016986,2]
[359145787,1745741439870,-400.0,0.00016986,2]
[359145788,1745741439880,-400.0,0.00016986,2]
[359145789,1745741439891,-200.0,0.00016986,2]
[359145790,1745741439901,-400.0,0.00016986,2]
[359145791,1745741439911,-400.0,0.00016986,2]
[359145792,1745741439921,-400.0,0.00016986,2]
[359145793,1745741439931,-500.0,0.00016986,2]
[359145794,1745741439941,-400.0,0.00016986,2]
[359145795,1745741439951,-400.0,0.00016986,2]
[359145796,1745741439961,-996.05,0.00016986,2]
[359145797,1745741439971,-400.0,0.00016986,2]
[359145798,1745741439981,-400.0,0.00016986,2]
[359145799,1745741439991,-1003.58,0.00016986,2]
[359145800,1745741440001,-1069.72,0.00016986,2]
[359145801,1745741440011,-400.0,0.00016986,2]
[359145802,1745741440021,-1202.19,0.00016986,2]
[359145803,1745741440030,-400.0,0.00016986,2]
[359145804,1745741440041,-400.0,0.00016986,2]
[359145805,1745741440051,-200.0,0.00016986,2]
[359145806,1745741440061,-400.0,0.00016986,2]
[359145807,1745741440071,-151.0,0.00016986,2]
[359145808,1745741440080,-1026.06,0.00016986,2]
[359145809,1745741440090,-400.0,0.00016986,2]
[359145810,1745741440100,-400.0,0.00016986,2]
[359145811,1745741440111,-400.0,0.00016986,2]
[359145812,1745741440121,-151.0,0.00016986,2]
[359145813,1745741440131,-291.78,0.00016986,2]
[359145814,1745741440142,-176.767744,0.00016986,2]
[359145815,1745741440152,-176.767744,0.00016986,2]
[359145816,1745741440162,-400.0,0.00016986,2]
[359145817,1745741440173,-2153.76,0.00016986,2]
[359145818,1745741440183,-2870.82,0.00016986,2]
[359145819,1745741440193,-400.0,0.00016986,2]
[359145820,1745741440203,-1658.55,0.00016986,2]
[359145821,1745741440214,-1907.14,0.00016986,2]
[359145822,1745741440224,-400.0,0.00016986,2]
[359145823,1745741440234,-400.0,0.00016986,2]
[359145824,1745741440244,-421.39,0.00016986,2]
[359145825,1745741440255,-400.0,0.00016986,2]
[359145826,1745741440265,-502.18,0.00016986,2]
[359145827,1745741440275,-351.47561163,0.00016986,2]
[359145828,1745741440285,-400.0,0.00016986,2]
[359145829,1745741440295,-151.0,0.00016986,2]
[359145830,1745741440305,-1330.61,0.00016986,2]
[359145831,1745741440316,-400.0,0.00016986,2]
[359145832,1745741440326,-1649.76,0.00016986,2]
[359145833,1745741440338,-1828.13,0.00016986,2]
[359145834,1745741440348,-400.0,0.00016986,2]
[359145835,1745741440360,-1071.72,0.00016986,2]
[359145836,1745741440370,-1777.42,0.00016986,2]
[359145837,1745741440379,-400.0,0.00016986,2]
[359145838,1745741440390,-400.0,0.00016986,2]
[359145839,1745741440400,-151.0,0.00016986,2]
[359145840,1745741440410,-400.0,0.00016986,2]
[359145841,1745741440419,-1363.46,0.00016986,2]
[359145842,1745741440430,-1220.27,0.00016986,2]
[359145843,1745741440440,-400.0,0.00016986,2]
[359145844,1745741440451,-2454.04,0.00016986,2]
[359145845,1745741440461,-1626.19,0.00016986,2]
[359145846,1745741440471,-500.0,0.00016986,2]
[359145847,1745741440480,-2884.11,0.00016986,2]
[359145848,1745741440490,-2174.91,0.00016986,2]
[359145849,1745741440500,-1479.4,0.00016986,2]
[359145850,1745741440510,-400.0,0.00016986,2]